fUSD/lending_fUSD_20240104
["ID","MTS","AMOUNT","RATE_DAILY","PERIOD"]
[310134070,1704379879036,-2986.36638763,0.00033951,2]
[310134071,1704379879046,-439.89804047,0.00033952,2]
[310134072,1704379879056,-2013.59,0.00033956,2]
[310134073,1704379879066,-2013.59,0.00033956,2]
[310134074,1704379879076,-2013.59,0.00033956,2]
[310134075,1704379879087,-2013.59,0.00033956,2]
[310134076,1704379879097,-2013.81948665,0.00033956,2]
[310134077,1704379879106,-793.95,0.00033956,2]
[310134078,1704379879117,-793.95,0.00033956,2]
[310134079,1704379879127,-793.95,0.00033956,2]
[310134080,1704379879138,-793.95,0.00033956,2]
[310134081,1704379879148,-794.02980817,0.00033956,2]
[310134082,1704379879158,-2821.22258424,0.00033957,2]
[310134083,1704379879169,-2985.70334268,0.00033957,2]
[310134084,1704379879179,-2526.47523598,0.00033959,2]
[310134085,1704379879189,-2900.93919168,0.00033959,2]
[310134086,1704379879199,-2556.89172622,0.0003396,2]
[310134087,1704379879209,-2991.69017051,0.00033962,2]
[310134088,1704379879218,-2569.64449696,0.00033962,2]
[310134089,1704379879228,-2985.00795823,0.00033962,2]
[310134090,1704379879242,-2933.91812521,0.00033963,2]
[310134091,1704379879252,-2985.57650242,0.00033964,2]
[310134092,1704379879261,-2991.02691716,0.00033965,2]
[310134093,1704379879270,-2984.47539389,0.00033966,2]
[310134094,1704379879280,-2818.7610949,0.00033967,2]
[310134095,1704379879290,-2985.84428214,0.00033968,2]
[310134096,1704379879299,-2991.0240149,0.00033969,2]
[310134097,1704379879308,-2985.90932179,0.0003397,2]
[310134098,1704379879318,-26721.90129521,0.00033971,2]
[310134099,1704379879328,-2772.00427316,0.00033972,2]
[310134100,1704379879338,-319.65386375,0.00033972,2]
[310134101,1704379879347,-500.0,0.00033972,2]
[310134102,1704379879357,-500.0,0.00033972,2]
[310134103,1704379879367,-500.0,0.00033972,2]
[310134104,1704379879377,-500.0,0.00033972,2]
[310134105,1704379879386,-500.0,0.00033972,2]
[310134106,1704379879395,-500.0,0.00033972,2]
[310134107,1704379879404,-1170.39,0.00033972,2]
[310134108,1704379879414,-500.0,0.00033972,2]
[310134109,1704379879423,-500.0,0.00033972,2]
[310134110,1704379879433,-500.0,0.00033972,2]
[310134111,1704379879441,-500.0,0.00033972,2]
[310134112,1704379879450,-500.0,0.00033972,2]
[310134113,1704379879460,-357.18777087,0.00033972,2]
[310134114,1704379879471,-536.34,0.00033972,2]
[310134115,1704379879481,-500.0,0.00033972,2]
[310134116,1704379879490,-500.0,0.00033972,2]
[310134117,1704379879500,-636.67,0.00033972,2]
[310134118,1704379879510,-500.0,0.00033972,2]
[310134119,1704379879709,-500.0,0.00033972,2]
[310134120,1704379879719,-500.0,0.00033972,2]
[310134121,1704379879728,-500.0,0.00033972,2]
[310134122,1704379879738,-500.0,0.00033972,2]
[310134123,1704379879749,-500.0,0.00033972,2]
[310134124,1704379879759,-500.0,0.00033972,2]
[310134125,1704379879769,-500.0,0.00033972,2]
[310134126,1704379879778,-500.0,0.00033972,2]
[310134127,1704379879787,-500.0,0.00033972,2]
[310134128,1704379879797,-559.58,0.00033972,2]
[310134129,1704379879807,-500.0,0.00033972,2]
[310134130,1704379879816,-500.0,0.00033972,2]
[310134131,1704379879824,-500.0,0.00033972,2]
[310134132,1704379879834,-500.0,0.00033972,2]
[310134133,1704379879843,-500.0,0.00033972,2]
[310134134,1704379879852,-500.0,0.00033972,2]
[310134135,1704379879862,-664.67,0.00033972,2]
[310134136,1704379879871,-294.70115603,0.00033972,2]
[310134137,1704379879881,-500.0,0.00033972,2]
[310134138,1704379879891,-500.0,0.00033972,2]
[310134139,1704379879900,-1268.46,0.00033972,2]
[310134140,1704379879909,-227.86622183,0.00033972,2]
[310134141,1704379879918,-500.0,0.00033972,2]
[310134142,1704379879928,-486.63695773,0.00033972,2]
[310134143,1704379879938,-539.05,0.00033972,2]
[310134144,1704379879947,-500.0,0.00033972,2]
[310134145,1704379879957,-292.95310099,0.00033972,2]
[310134146,1704379879966,-500.0,0.00033972,2]
[310134147,1704379879977,-500.0,0.00033972,2]
[310134148,1704379879987,-500.0,0.00033972,2]
[310134149,1704379879997,-500.0,0.00033972,2]
[310134150,1704379880007,-500.0,0.00033972,2]
[310134151,1704379880017,-500.0,0.00033972,2]
[310134152,1704379880027,-500.0,0.00033972,2]
[310134153,1704379880037,-500.0,0.00033972,2]
[310134154,1704379880047,-500.0,0.00033972,2]
[310134155,1704379880057,-500.0,0.00033972,2]
[310134156,1704379880068,-500.0,0.00033972,2]
[310134157,1704379880078,-500.0,0.00033972,2]
[310134158,1704379880088,-500.0,0.00033972,2]
[310134159,1704379880098,-839.9,0.00033972,2]
[310134160,1704379880108,-500.0,0.00033972,2]
[310134161,1704379880118,-500.0,0.00033972,2]
[310134162,1704379880129,-500.0,0.00033972,2]
[310134163,1704379880139,-1234.04,0.00033972,2]
[310134164,1704379880149,-1658.72,0.00033972,2]
[310134165,1704379880159,-500.0,0.00033972,2]
[310134166,1704379880169,-500.0,0.00033972,2]
[310134167,1704379880179,-500.0,0.00033972,2]
[310134168,1704379880188,-500.0,0.00033972,2]
[310134169,1704379880198,-548.38,0.00033972,2]
[310134170,1704379880208,-500.0,0.00033972,2]
[310134171,1704379880219,-500.0,0.00033972,2]
[310134172,1704379880228,-500.0,0.00033972,2]
[310134173,1704379880451,-500.0,0.00033972,2]
[310134174,1704379880462,-500.0,0.00033972,2]
[310134175,1704379880474,-569.64,0.00033972,2]
[310134176,1704379880486,-552.28,0.00033972,2]
[310134177,1704379880497,-512.92,0.00033972,2]
[310134178,1704379880508,-1150.58,0.00033972,2]
[310134179,1704379880519,-500.0,0.00033972,2]
[310134180,1704379880529,-630.51357579,0.00033972,2]
[310134181,1704379880539,-500.0,0.00033972,2]
[310134182,1704379880550,-500.0,0.00033972,2]
[310134183,1704379880561,-500.0,0.00033972,2]
[310134184,1704379880571,-500.0,0.00033972,2]
[310134185,1704379880581,-500.0,0.00033972,2]
[310134186,1704379880591,-500.0,0.00033972,2]
[310134187,1704379880601,-823.9,0.00033972,2]
[310134188,1704379880611,-663.69,0.00033972,2]
[310134189,1704379880620,-697.92,0.00033972,2]
[310134190,1704379880631,-588.83097732,0.00033972,2]
[310134191,1704379880642,-804.76,0.00033972,2]
[310134192,1704379880653,-500.0,0.00033972,2]
[310134193,1704379880664,-1477.52,0.00033972,2]
[310134194,1704379880675,-500.0,0.00033972,2]
[310134195,1704379880686,-500.0,0.00033972,2]
[310134196,1704379880697,-719.32,0.00033972,2]
[310134197,1704379880707,-791.14,0.00033972,2]
[310134198,1704379880718,-500.0,0.00033972,2]
[310134199,1704379880729,-500.0,0.00033972,2]
[310134200,1704379880740,-1714.8,0.00033972,2]
[310134201,1704379880752,-500.0,0.00033972,2]
[310134202,1704379880762,-504.83,0.00033972,2]
[310134203,1704379880773,-500.0,0.00033972,2]
[310134204,1704379880784,-500.0,0.00033972,2]
[310134205,1704379880794,-500.0,0.00033972,2]
[310134206,1704379880805,-500.0,0.00033972,2]
[310134207,1704379880816,-957.5,0.00033972,2]
[310134208,1704379880826,-421.20996106,0.00033972,2]
[310134209,1704379880837,-500.0,0.00033972,2]
[310134210,1704379880848,-525.69513336,0.00033972,2]
[310134211,1704379880858,-500.0,0.00033972,2]
[310134212,1704379880867,-500.0,0.00033972,2]
[310134213,1704379880878,-500.0,0.00033972,2]
[310134214,1704379880887,-500.0,0.00033972,2]
[310134215,1704379880897,-500.0,0.00033972,2]
[310134216,1704379880906,-500.0,0.00033972,2]
[310134217,1704379880917,-2008.27,0.00033972,2]
[310134218,1704379880928,-500.0,0.00033972,2]
[310134219,1704379880937,-500.0,0.00033972,2]
[310134220,1704379880948,-571.34,0.00033972,2]
[310134221,1704379880958,-500.0,0.00033972,2]
[310134222,1704379880971,-765.5,0.00033972,2]
[310134223,1704379880981,-1029.06,0.00033972,2]
[310134224,1704379880992,-631.66,0.00033972,2]
[310134225,1704379881002,-500.0,0.00033972,2]
[310134226,1704379881012,-500.0,0.00033972,2]
[310134227,1704379881022,-500.0,0.00033972,2]
[310134228,1704379881032,-500.0,0.00033972,2]
[310134229,1704379881042,-733.19,0.00033972,2]
[310134230,1704379881052,-783.89,0.00033972,2]
[310134231,1704379881063,-172.05730248,0.00033972,2]
[310134232,1704379881073,-500.0,0.00033972,2]
[310134233,1704379881083,-1116.15,0.00033972,2]
[310134234,1704379881094,-500.0,0.00033972,2]
[310134235,1704379881105,-500.0,0.00033972,2]
[310134236,1704379881115,-500.0,0.00033972,2]
[310134237,1704379881126,-812.07,0.00033972,2]
[310134238,1704379881136,-500.0,0.00033972,2]
[310134239,1704379881146,-500.0,0.00033972,2]
[310134240,1704379881157,-500.0,0.00033972,2]
[310134241,1704379881167,-500.0,0.00033972,2]
[310134242,1704379881177,-1411.3,0.00033972,2]
[310134243,1704379881188,-1047.26,0.00033972,2]
[310134244,1704379881198,-894.07,0.00033972,2]
[310134245,1704379881209,-500.0,0.00033972,2]
[310134246,1704379881220,-934.08,0.00033972,2]
[310134247,1704379881231,-846.07,0.00033972,2]
[310134248,1704379881241,-500.0,0.00033972,2]
[310134249,1704379881252,-1040.25,0.00033972,2]
[310134250,1704379881261,-500.0,0.00033972,2]
[310134251,1704379881273,-500.0,0.00033972,2]
[310134252,1704379881283,-368.82308311,0.00033972,2]
[310134253,1704379881293,-500.0,0.00033972,2]
[310134254,1704379881303,-500.0,0.00033972,2]
[310134255,1704379881312,-594.54202503,0.00033972,2]
[310134256,1704379881323,-500.0,0.00033972,2]
[310134257,1704379881333,-500.0,0.00033972,2]
[310134258,1704379881344,-500.0,0.00033972,2]
[310134259,1704379881354,-500.0,0.00033972,2]
[310134260,1704379881365,-500.0,0.00033972,2]
[310134261,1704379881375,-500.0,0.00033972,2]
[310134262,1704379881386,-610.55,0.00033972,2]
[310134263,1704379881396,-891.58,0.00033972,2]
[310134264,1704379881406,-1217.37,0.00033972,2]
[310134265,1704379881417,-715.91,0.00033972,2]
[310134266,1704379881427,-797.72,0.00033972,2]
[310134267,1704379881436,-500.0,0.00033972,2]
[310134268,1704379881446,-500.0,0.00033972,2]
[310134269,1704379881456,-500.0,0.00033972,2]
[310134270,1704379881466,-500.0,0.00033972,2]
[310134271,1704379881478,-1173.45,0.00033972,2]
[310134272,1704379881488,-3915.96,0.00033972,2]
[310134273,1704379881498,-366.60636611,0.00033972,2]
[310134274,1704379881509,-500.0,0.00033972,2]
[310134275,1704379881519,-500.0,0.00033972,2]
[310134276,1704379881530,-500.0,0.00033972,2]
[310134277,1704379881540,-500.0,0.00033972,2]
[310134278,1704379881550,-629.45,0.00033972,2]
[310134279,1704379881561,-500.0,0.00033972,2]
[310134280,1704379881571,-500.0,0.00033972,2]
[310134281,1704379881581,-500.0,0.00033972,2]
[310134282,1704379881592,-500.0,0.00033972,2]
[310134283,1704379881603,-500.0,0.00033972,2]
[310134284,1704379881613,-500.0,0.00033972,2]
[310134285,1704379881623,-500.0,0.00033972,2]
[310134286,1704379881634,-500.0,0.00033972,2]
[310134287,1704379881644,-974.59,0.00033972,2]
[310134288,1704379881654,-863.85,0.00033972,2]
[310134289,1704379881665,-500.0,0.00033972,2]
[310134290,1704379881675,-500.0,0.00033972,2]
[310134291,1704379881685,-500.0,0.00033972,2]
[310134292,1704379881696,-725.52,0.00033972,2]
[310134293,1704379881706,-572.88,0.00033972,2]
[310134294,1704379881716,-500.0,0.00033972,2]
[310134295,1704379881728,-1774.19,0.00033972,2]
[310134296,1704379881738,-1363.67,0.00033972,2]
[310134297,1704379881748,-828.86,0.00033972,2]
[310134298,1704379881758,-500.0,0.00033972,2]
[310134299,1704379881768,-500.0,0.00033972,2]
[310134300,1704379881778,-567.59828035,0.00033972,2]
[310134301,1704379881788,-500.0,0.00033972,2]
[310134302,1704379881797,-611.19668178,0.00033972,2]
[310134303,1704379881807,-1081.68,0.00033972,2]
[310134304,1704379881817,-621.0,0.00033972,2]
[310134305,1704379881828,-765.16,0.00033972,2]
[310134306,1704379881837,-500.0,0.00033972,2]
[310134307,1704379881846,-500.0,0.00033972,2]
[310134308,1704379881856,-500.0,0.00033972,2]
[310134309,1704379881866,-500.0,0.00033972,2]
[310134310,1704379881875,-500.0,0.00033972,2]
[310134311,1704379881885,-500.0,0.00033972,2]
[310134312,1704379881895,-500.0,0.00033972,2]
[310134313,1704379881905,-500.0,0.00033972,2]
[310134314,1704379881915,-500.0,0.00033972,2]
[310134315,1704379881925,-554.15,0.00033972,2]
[310134316,1704379881936,-500.0,0.00033972,2]
[310134317,1704379881946,-500.0,0.00033972,2]
[310134318,1704379881957,-500.0,0.00033972,2]
[310134319,1704379881967,-500.0,0.00033972,2]
[310134320,1704379881983,-1343.23,0.00033972,2]
[310134321,1704379881993,-500.0,0.00033972,2]
[310134322,1704379882003,-500.0,0.00033972,2]
[310134323,1704379882015,-500.0,0.00033972,2]
[310134324,1704379882025,-500.0,0.00033972,2]
[310134325,1704379882036,-1921.23,0.00033972,2]
[310134326,1704379882047,-1082.21,0.00033972,2]
[310134327,1704379882058,-514.34,0.00033972,2]
[310134328,1704379882068,-500.0,0.00033972,2]
[310134329,1704379882079,-500.0,0.00033972,2]
[310134330,1704379882090,-500.0,0.00033972,2]
[310134331,1704379882100,-500.0,0.00033972,2]
[310134332,1704379882111,-500.0,0.00033972,2]
[310134333,1704379882123,-500.0,0.00033972,2]
[310134334,1704379882133,-500.0,0.00033972,2]
[310134335,1704379882144,-500.0,0.00033972,2]
[310134336,1704379882155,-293.25,0.00033972,2]
[310134337,1704379882166,-560.5,0.00033972,2]
[310134338,1704379882176,-500.76,0.00033972,2]
[310134339,1704379882186,-500.0,0.00033972,2]
[310134340,1704379882196,-500.0,0.00033972,2]
[310134341,1704379882207,-500.0,0.00033972,2]
[310134342,1704379882218,-500.0,0.00033972,2]
[310134343,1704379882234,-500.0,0.00033972,2]
[310134344,1704379882244,-747.05,0.00033972,2]
[310134345,1704379882257,-598.02,0.00033972,2]
[310134346,1704379882267,-956.94,0.00033972,2]
[310134347,1704379882278,-900.32,0.00033972,2]
[310134348,1704379882287,-500.0,0.00033972,2]
[310134349,1704379882297,-500.0,0.00033972,2]
[310134350,1704379882307,-508.24,0.00033972,2]
[310134351,1704379882317,-674.57,0.00033972,2]
[310134352,1704379882327,-500.0,0.00033972,2]
[310134353,1704379882338,-500.0,0.00033972,2]
[310134354,1704379882348,-500.0,0.00033972,2]
[310134355,1704379882357,-500.0,0.00033972,2]
[310134356,1704379882368,-500.0,0.00033972,2]
[310134357,1704379882378,-500.0,0.00033972,2]
[310134358,1704379882387,-500.0,0.00033972,2]
[310134359,1704379882397,-500.0,0.00033972,2]
[310134360,1704379882407,-500.0,0.00033972,2]
[310134361,1704379882418,-500.0,0.00033972,2]
[310134362,1704379882428,-500.0,0.00033972,2]
[310134363,1704379882438,-1096.25,0.00033972,2]
[310134364,1704379882448,-500.0,0.00033972,2]
[310134365,1704379882459,-500.0,0.00033972,2]
[310134366,1704379882469,-921.29,0.00033972,2]
[310134367,1704379882481,-342.45203623,0.00033972,2]
[310134368,1704379882491,-500.0,0.00033972,2]
[310134369,1704379882500,-555.3,0.00033972,2]
[310134370,1704379882511,-500.0,0.00033972,2]
[310134371,1704379882522,-2229.59,0.00033972,2]
[310134372,1704379882532,-500.0,0.00033972,2]
[310134373,1704379882542,-543.17,0.00033972,2]
[310134374,1704379882552,-500.0,0.00033972,2]
[310134375,1704379882561,-500.0,0.00033972,2]
[310134376,1704379882571,-500.0,0.00033972,2]
[310134377,1704379882580,-1426.32,0.00033972,2]
[310134378,1704379882590,-656.25,0.00033972,2]
[310134379,1704379882600,-500.0,0.00033972,2]
[310134380,1704379882610,-500.0,0.00033972,2]
[310134381,1704379882620,-500.0,0.00033972,2]
[310134382,1704379882639,-500.0,0.00033972,2]
[310134383,1704379882659,-500.0,0.00033972,2]
[310134384,1704379882679,-500.0,0.00033972,2]
[310134385,1704379882698,-500.0,0.00033972,2]
[310134386,1704379882719,-500.0,0.00033972,2]
[310134387,1704379882742,-500.0,0.00033972,2]
[310134388,1704379882770,-500.0,0.00033972,2]
[310134389,1704379882793,-975.89,0.00033972,2]
[310134390,1704379882819,-500.0,0.00033972,2]
[310134391,1704379882842,-492.39380518,0.00033972,2]
[310134392,1704379882870,-4163.78619482,0.00033972,2]
[310134393,1704379882880,-1479.88,0.00033972,2]
[310134394,1704379882890,-500.0,0.00033972,2]
[310134395,1704379882900,-500.0,0.00033972,2]
[310134396,1704379882910,-500.0,0.00033972,2]
[310134397,1704379882920,-500.0,0.00033972,2]
[310134398,1704379882931,-853.53,0.00033972,2]
[310134399,1704379882941,-168.20380518,0.00033972,2]
[310134400,1704379882954,-331.79619482,0.00033972,2]
[310134401,1704379883126,-270.50143918,0.00033972,2]
[310134402,1704379883140,-229.49856082,0.00033972,2]
[310134403,1704379883151,-485.69432644,0.00033972,2]
[310134404,1704379883163,-5103.31567356,0.00033972,2]
[310134405,1704379883173,-507.64458184,0.00033972,2]
[310134406,1704379883184,-500.0,0.00033972,2]
[310134407,1704379883194,-2615.87077084,0.00033972,2]
[310134408,1704379890174,561456.87055463,0.00023,2]
[310134409,1704380018765,340.48161415,0.0002313,2]
[310134410,1704380067142,433.55028274,0.000231,2]
[310134411,1704380455484,987.80227155,0.000231,2]
[310134412,1704380481475,344.41386725,0.000231,2]
[310134421,1704381031379,-522.36940647,0.00027373,2]
[310134422,1704381031389,-375.77532929,0.00027373,2]
[310134423,1704381031399,-383.06666302,0.00027374,2]
[310134424,1704381031410,-250.0,0.000274,2]
[310134425,1704381031422,-218.0,0.00027509,2]
[310134426,1704381031434,-411.17,0.00027817,2]
[310134427,1704381031443,-22.76860122,0.00028969,2]
[310134428,1704381031564,-1977.23139878,0.00028969,2]
[310134429,1704381031575,-500.0,0.00028976,2]
[310134430,1704381031588,-593.99,0.0002901,2]
[310134431,1704381031598,-36.85910753,0.00029045,2]
[310134432,1704381031716,-161.94089247,0.00029045,2]
[310134433,1704381031727,-290.76270753,0.00029369,2]
[310134434,1704381031752,-7.89729247,0.00029369,2]
[310134435,1704381031762,-298.66,0.00029524,2]
[310134436,1704381031773,-152.85994223,0.000296,2]
[310134437,1704381031784,-341.93,0.00029657,2]
[310134438,1704381031796,-298.66,0.00029679,2]
[310134440,1704381031805,-977.58317661,0.000297,2]
[310134444,1704381031827,-22.41682339,0.000297,2]
[310134446,1704381031837,-406.98520851,0.000297,2]
[310134456,1704381037462,-2093.01479149,0.000297,2]
[310134457,1704381037473,-1132.8883,0.000297,2]
[310134458,1704381037483,-10078.0231,0.000297,2]
[310134459,1704381037492,-309.13673476,0.000297,2]
[310134460,1704381037501,-176.09504191,0.000297,2]
[310134461,1704381037511,-387.3526,0.000297,2]
[310134462,1704381037521,-715.9183,0.000297,2]
[310134463,1704381037530,-491.17492252,0.0002979,2]
[310134464,1704381037539,-185.32628498,0.00029797,2]
[310134465,1704381037549,-190.36055152,0.00029798,2]
[310134466,1704381037558,-192.47814891,0.00029799,2]
[310134467,1704381037568,-192.47814891,0.00029799,2]
[310134468,1704381037577,-192.47814891,0.00029799,2]
[310134469,1704381037586,-192.47814891,0.00029799,2]
[310134470,1704381037596,-192.47814891,0.00029799,2]
[310134471,1704381037605,-192.47814891,0.00029799,2]
[310134472,1704381037614,-192.47814891,0.00029799,2]
[310134473,1704381037624,-192.47814891,0.00029799,2]
[310134474,1704381037633,-192.47814891,0.00029799,2]
[310134475,1704381037642,-192.47814891,0.00029799,2]
[310134476,1704381037651,-192.47814891,0.00029799,2]
[310134477,1704381037661,-192.47814891,0.00029799,2]
[310134478,1704381037671,-192.47814891,0.00029799,2]
[310134479,1704381037680,-192.47814891,0.00029799,2]
[310134480,1704381037690,-192.47814891,0.00029799,2]
[310134481,1704381037699,-192.47814891,0.00029799,2]
[310134482,1704381037708,-192.47814891,0.00029799,2]
[310134483,1704381037717,-192.47814891,0.00029799,2]
[310134484,1704381037727,-192.47814891,0.00029799,2]
[310134485,1704381037736,-192.47814891,0.00029799,2]
[310134486,1704381037746,-192.47814891,0.00029799,2]
[310134487,1704381037755,-192.47814891,0.00029799,2]
[310134488,1704381037765,-192.47814891,0.00029799,2]
[310134489,1704381037775,-192.47814891,0.00029799,2]
[310134490,1704381037784,-192.47814891,0.00029799,2]
[310134491,1704381037794,-192.47814891,0.00029799,2]
[310134492,1704381037804,-192.47814891,0.00029799,2]
[310134493,1704381037814,-192.47814891,0.00029799,2]
[310134494,1704381037823,-192.47814891,0.00029799,2]
[310134495,1704381037833,-192.47814891,0.00029799,2]
[310134496,1704381037843,-192.47814891,0.00029799,2]
[310134497,1704381037852,-192.47814891,0.00029799,2]
[310134498,1704381037862,-192.47814891,0.00029799,2]
[310134499,1704381037871,-192.47814891,0.00029799,2]
[310134500,1704381037880,-192.47814891,0.00029799,2]
[310134501,1704381037890,-514.40879808,0.00029799,2]
[310134502,1704381037902,-658.97568821,0.00029799,2]
[310134503,1704381037912,-20030.58967468,0.000298,2]
[310134504,1704381037956,-1103.01855079,0.000298,2]
[310134505,1704381037976,-49428.15526662,0.000298,2]
[310134506,1704381037988,-45577.97890949,0.000298,2]
[310134507,1704381038000,-450.0,0.000298,2]
[310134508,1704381038019,-3000.03,0.000298,2]
[310134509,1704381038031,-323.70292888,0.000298,2]
[310134523,1704381040670,-1290293.58502582,0.000298,2]
[310134524,1704381040680,-1500.0,0.000298,2]
[310134525,1704381040690,-1500.0,0.000298,2]
[310134526,1704381040700,-1500.0,0.000298,2]
[310134527,1704381040709,-1380.86,0.000298,2]
[310134528,1704381040718,-298.66,0.00029833,2]
[310134529,1704381040727,-298.66,0.00029988,2]
[310134530,1704381040737,-16395.51223475,0.0003,2]
[310134531,1704381040747,-155.0,0.0003,2]
[310134532,1704381040760,-580.71892747,0.0003,2]
[310134533,1704381040769,-411.17,0.00030081,2]
[310134534,1704381040779,-298.66,0.00030142,2]
[310134535,1704381040788,-309.13673476,0.00030229,2]
[310134536,1704381040799,-298.66,0.00030297,2]
[310134537,1704381040809,-232.6,0.00030346,2]
[310134538,1704381040818,-23900.0,0.00030391,2]
[310134539,1704381040829,-152.85994222,0.00030394,2]
[310134540,1704381040840,-234.40103,0.00030398,2]
[310134541,1704381040850,-298.66,0.00030451,2]
[310134542,1704381040861,-198.8,0.00030497,2]
[310134543,1704381040872,-234.40103,0.00030498,2]
[310134544,1704381040881,-234.40103,0.00030598,2]
[310134545,1704381040892,-298.66,0.00030606,2]
[310134547,1704381041143,-234.40103,0.00030698,2]
[310134548,1704381041155,-309.13673476,0.00030757,2]
[310134549,1704381041164,-406.01,0.00030759,2]
[310134550,1704381041176,-157.59,0.00030759,2]
[310134551,1704381041185,-298.66,0.00030761,2]
[310134552,1704381041195,-234.40103,0.00030798,2]
[310134553,1704381041206,-2608.15,0.00030824,2]
[310134554,1704381041216,-298.66,0.00030915,2]
[310134555,1704381041225,-234.40103,0.00030998,2]
[310134556,1704381041236,-50000.0,0.00031,2]
[310134557,1704381041246,-3000.0,0.00031,2]
[310134558,1704381041255,-155.0,0.00031,2]
[310134559,1704381041266,-298.66,0.0003107,2]
[310134560,1704381041275,-152.85994222,0.00031188,2]
[310134561,1704381041285,-298.66,0.00031224,2]
[310134562,1704381041294,-309.13673476,0.00031286,2]
[310134563,1704381041303,-232.6,0.00031325,2]
[310134564,1704381041313,-832.0,0.00031378,2]
[310134565,1704381041322,-942.0,0.00031378,2]
[310134566,1704381041332,-1234.0,0.00031378,2]
[310134567,1704381041342,-824.534,0.00031378,2]
[310134568,1704381041351,-1316.615,0.00031378,2]
[310134569,1704381041361,-769.036,0.00031378,2]
[310134570,1704381041371,-317.0,0.00031378,2]
[310134571,1704381041380,-204.648,0.00031378,2]
[310134572,1704381041390,-298.66,0.00031379,2]
[310134573,1704381041399,-4185.0,0.00031388,2]
[310134574,1704381041409,-610.459,0.00031388,2]
[310134575,1704381041420,-243.229,0.00031388,2]
[310134576,1704381041429,-8189.77947771,0.000314,2]
[310134577,1704381041439,-500.0,0.000315,2]
[310134578,1704381041449,-298.66,0.00031533,2]
[310134579,1704381041458,-218.0,0.0003157,9]
[310134580,1704381041468,-156.94,0.00031616,2]
[310134581,1704381041477,-298.66,0.00031688,2]
[310134582,1704381041486,-157.59,0.00031784,2]
[310134583,1704381041496,-150.0,0.000318,2]
[310134584,1704381041505,-225277.717458,0.000318,2]
[310134585,1704381041516,-309.13673476,0.00031815,3]
[310134586,1704381041526,-298.66,0.00031843,2]
[310134587,1704381041535,-175.77,0.00031876,2]
[310134588,1704381041545,-979.43084688,0.00031876,2]
[310134589,1704381041556,-286.21123975,0.00031888,4]
[310134590,1704381041566,-151.69064531,0.000319,2]
[310134591,1704381041575,-151.69064531,0.000319,2]
[310134592,1704381041584,-151.69064531,0.000319,2]
[310134593,1704381041593,-1888.78174303,0.000319,2]
[310134594,1704381041604,-176.19044628,0.000319,2]
[310134595,1704381041613,-198.8,0.00031949,2]
[310134596,1704381041623,-152.85994222,0.00031981,2]
[310134597,1704381041632,-298.66,0.00031997,2]
[310134598,1704381041641,-100000.0,0.00032,2]
[310134599,1704381041651,-4013.07018382,0.00032,2]
[310134600,1704381041662,-179.82017932,0.00032,4]
[310134601,1704381041673,-113041.98274211,0.00032,2]
[310134602,1704381041682,-6225.80136791,0.00032,2]
[310134603,1704381041692,-5000.0,0.00032,7]
[310134604,1704381041702,-298.66,0.00032152,2]
[310134605,1704381041711,-232.6,0.00032303,2]